bitfinex-derivatives/quotes_ETHF0:USTF0_20250923
["timestamp","ask_amount","ask_price","bid_price","bid_amount"]
[1758596131558,4.14799953,4145.8,4145.7,40.8]
[1758596132060,3.83739953,4145.8,4145.7,41.387]
[1758596132262,3.2078,4146.4,4146.2,0.43372]
[1758596132456,0.3106,4146.7,4146.3,0.587]
[1758596132656,0.3106,4146.7,4146.5,0.43368]
[1758596132952,3.2078,4146.9,4146.7,0.76466]
[1758596133153,3.2078,4146.9,4146.7,0.43366]
[1758596133361,3.2078,4146.9,4146.8,0.331]
[1758596133553,0.3106,4147.3,4147.1,0.43362]
[1758596133753,0.3106,4147.3,4146.7,4.37538971]
[1758596133955,3.3386,4147.5,4146.8,41.056]
[1758596134262,0.3106,4147.4,4147.1,0.43362]
[1758596134461,0.3106,4147.4,4147.2,0.256]
[1758596134861,0.3106,4147.4,4147.2,1.02061]
[1758596135157,3.2078,4147.8,4147.2,0.256]
[1758596135362,0.022,4147.9,4147.8,0.331]
[1758596135662,0.022,4147.9,4147.8,0.257]
[1758596136175,0.3326,4147.9,4147.8,0.257]
[1758596136971,0.022,4147.9,4147.8,0.588]
[1758596137460,0.3106,4148.5,4147.8,3.7958]
[1758596137860,0.3106,4148.5,4148.3,0.7645]
[1758596138060,0.3106,4148.5,4148.4,0.256]
[1758596138958,0.43347,4148.7,4148.4,0.256]
[1758596139162,0.3106,4148.5,4148.4,0.256]
[1758596139362,0.3106,4148.9,4148.5,0.43348]
[1758596139763,3.335,4149.0,4148.5,0.43348]
[1758596139958,3.335,4149.0,4148.6,0.43346]
[1758596139959,0.3106,4148.9,4148.6,0.43346]
[1758596140264,3.335,4149.0,4148.7,0.256]
[1758596140465,0.3106,4148.9,4148.7,0.256]
[1758596140656,3.335,4149.0,4148.7,0.256]
[1758596140965,0.3106,4148.9,4148.7,0.256]
[1758596141162,3.335,4149.0,4148.7,0.256]
[1758596141369,0.3106,4148.9,4148.7,0.256]
[1758596142163,0.3106,4148.8,4148.7,0.256]
[1758596143868,3.5184,4149.0,4148.8,0.76445]
[1758596144371,3.5184,4149.0,4148.9,0.331]
[1758596144961,3.2078,4149.0,4148.9,0.331]
[1758596145170,0.4378,4149.5,4148.9,0.331]
[1758596145361,0.4378,4149.5,4149.4,0.43339]
[1758596145557,3.2078,4149.7,4149.6,0.43337]
[1758596146068,3.2078,4149.7,4149.6,1.01937]
[1758596146567,3.5184,4149.7,4149.6,0.68837]
[1758596147375,0.3106,4149.7,4149.6,1.01937]
[1758596147572,0.3106,4149.7,4149.6,0.68837]
[1758596148471,0.3106,4149.7,4149.6,1.01937]
[1758596149270,0.3106,4150.0,4149.9,0.43333]
[1758596149577,3.5184,4150.3,4150.2,0.4333]
[1758596149774,3.5184,4150.3,4150.2,0.6883]
[1758596150072,3.5184,4150.3,4150.2,0.255]
[1758596150665,3.5184,4150.3,4150.1,0.43331]
[1758596150973,3.2078,4150.3,4150.2,0.255]
[1758596151376,3.5184,4150.3,4150.2,0.255]
[1758596151775,3.5184,4150.3,4150.2,4.63038971]
[1758596151979,3.2078,4150.3,4150.2,4.63038971]
[1758596152178,0.3106,4150.7,4150.6,0.43326]
[1758596152377,0.3106,4150.7,4150.6,0.68826]
[1758596152580,0.3106,4150.7,4150.6,1.01926]
[1758596152977,0.3106,4150.7,4150.6,0.68826]
[1758596153678,0.3106,4150.7,4150.6,1.01926]
[1758596154376,3.2078,4150.8,4150.6,1.01926]
[1758596154577,0.3106,4150.7,4150.6,1.01926]
[1758596155170,3.2078,4150.8,4150.6,1.01926]
[1758596155370,3.2078,4150.8,4150.7,0.331]
[1758596155571,3.5184,4150.8,4150.7,0.331]
[1758596155774,3.5184,4150.8,4150.7,41.131]
[1758596156979,0.3106,4150.8,4150.7,41.131]
[1758596157180,3.2078,4151.3,4150.7,41.131]
[1758596157379,3.5184,4150.8,4150.7,40.8]
[1758596157883,3.5184,4150.8,4150.7,41.054]
[1758596159281,8.13377733,4150.8,4150.7,0.254]
[1758596159483,8.27076025,4150.8,4149.8,0.43334]
[1758596159683,0.3106,4149.9,4149.2,3.2078]
[1758596159888,0.1272,4149.5,4149.3,0.254]
[1758596160088,0.3106,4149.4,4149.3,0.254]
[1758596160382,3.5116,4149.7,4149.5,0.43337]
[1758596160588,0.61634334,4149.6,4149.3,41.2334]
[1758596160789,0.3038,4149.4,4149.3,41.1184]
[1758596160988,0.3038,4149.4,4149.3,41.3724]
[1758596161284,0.3038,4149.4,4149.2,0.43341]
[1758596161487,0.3038,4149.2,4149.0,0.43343]
[1758596161687,3.2078,4149.2,4149.1,1.00581]
[1758596161987,3.2078,4150.3,4150.2,0.43331]
[1758596162178,3.71869067,4150.3,4150.2,0.68731]
[1758596162388,0.4317,4150.0,4149.9,0.43333]
[1758596162577,3.41500944,4150.3,4149.9,0.43333]
[1758596162578,3.2078,4150.3,4150.2,0.75171]
[1758596162784,3.71879081,4150.3,4150.2,0.43331]
[1758596163088,3.41499081,4150.3,4150.1,0.43331]
[1758596163292,0.56123,4150.0,4149.6,0.43336]
[1758596163491,3.2078,4149.7,4148.9,0.3184]
[1758596163685,0.3038,4149.4,4149.3,0.4334]
[1758596163990,0.51110981,4149.4,4149.3,1.0068]
[1758596164188,0.51110981,4149.4,4149.3,0.6884]
[1758596164591,0.51110981,4149.4,4149.3,1.0068]
[1758596165092,0.20730981,4149.4,4149.3,5.05118971]
[1758596165294,3.2078,4149.7,4149.6,0.3184]
[1758596165493,3.71919697,4149.7,4149.6,0.5734]
[1758596165890,0.3038,4149.6,4149.3,0.4334]
[1758596166085,3.84875697,4149.7,4149.3,0.4334]
[1758596166086,0.3038,4149.4,4149.3,0.4334]
[1758596166389,0.51139697,4149.4,4148.8,0.3184]
[1758596166591,0.1279,4149.0,4148.8,0.43344]
[1758596166794,0.4317,4149.0,4148.9,41.055]
[1758596166995,0.63936748,4149.0,4148.9,41.055]
[1758596167291,0.20766748,4149.0,4148.9,41.3734]
[1758596169286,0.20766748,4149.0,4148.9,45.3734]
[1758596169686,3.2078,4149.6,4149.0,1.08359]
[1758596169886,0.2062795,4149.5,4149.4,4.79617971]
[1758596170095,0.2062795,4149.5,4149.4,5.05117971]
[1758596170483,3.2078,4150.3,4150.2,0.75171]
[1758596170688,3.2078,4150.3,4150.2,0.68831]
[1758596170689,3.5116,4150.3,4150.2,0.68831]
[1758596171094,3.5116,4150.3,4150.2,41.48831]
[1758596171593,3.5116,4150.8,4150.7,0.43325]
[1758596171795,3.5116,4150.8,4150.2,40.8]
[1758596171796,0.3038,4150.7,4150.2,40.8]
[1758596171992,0.3038,4150.7,4150.3,0.255]
[1758596172594,0.3038,4150.7,4150.6,0.43327]
[1758596172905,0.3038,4150.7,4150.6,0.68827]
[1758596173990,0.89681505,4150.7,4150.6,0.68827]
[1758596174397,0.59301505,4150.7,4150.6,1.00667]
[1758596174796,0.89681505,4150.7,4150.6,0.68727]
[1758596175598,0.7371,4150.3,4149.0,0.4509]
[1758596175901,0.3038,4149.4,4149.3,0.4334]
[1758596176196,0.89681505,4149.4,4149.3,40.8]
[1758596176493,0.89681505,4149.4,4149.3,0.255]
[1758596176997,0.59301505,4149.4,4149.3,4.5734]
[1758596177399,0.59318015,4150.1,4149.5,0.1325]
[1758596177601,0.59318011,4150.0,4149.6,41.055]
[1758596177797,0.59318011,4149.9,4149.8,0.3186]
[1758596178000,0.59318011,4149.9,4149.8,0.5736]
[1758596179604,0.59318011,4149.9,4149.8,41.3736]
[1758596179796,0.91748011,4149.9,4149.8,40.8]
[1758596180202,8.12528011,4149.9,4148.9,0.3186]
[1758596180401,0.59318011,4149.8,4149.5,0.43337]
[1758596180601,0.91748011,4149.7,4149.6,0.255]
[1758596180804,0.59318011,4149.7,4149.6,0.255]
[1758596181404,0.91748011,4149.7,4149.6,0.255]
[1758596181703,0.91748011,4149.7,4149.0,40.8]
[1758596181704,0.3243,4149.6,4149.3,0.4334]
[1758596181908,1.05148011,4149.5,4149.4,0.255]
[1758596182201,4.25928011,4149.5,4149.4,0.255]
[1758596182405,4.46019677,4149.5,4149.4,0.255]
[1758596182602,4.00189677,4149.5,4149.4,0.5736]
[1758596182804,0.79409677,4149.5,4149.4,0.5736]
[1758596183010,1.11839677,4149.5,4149.4,0.5736]
[1758596183207,0.52521666,4149.5,4149.4,0.5736]
[1758596183503,0.20091666,4149.5,4149.4,0.5736]
[1758596185007,3.2078,4150.1,4150.0,0.75193]
[1758596185213,4.32589368,4150.1,4150.0,0.68733]
[1758596185401,0.134,4150.0,4149.2,42.2338]
[1758596185604,0.52519294,4149.9,4149.6,0.43336]
[1758596185813,0.3243,4149.7,4149.6,0.43336]
[1758596186119,0.52519294,4149.7,4149.6,0.68736]
[1758596187308,0.52519294,4149.7,4149.0,40.8]
[1758596187309,0.52519294,4149.7,4149.4,0.43339]
[1758596187509,0.3243,4149.4,4149.3,0.4334]
[1758596187703,0.52519294,4149.4,4149.3,0.4334]
[1758596187906,0.52519294,4149.4,4149.3,0.6874]
[1758596188611,0.20089294,4149.4,4149.1,0.43342]
[1758596188917,0.20089294,4149.4,4149.3,0.6874]
[1758596189298,0.52519294,4149.4,4149.3,0.6874]
[1758596189504,0.20089294,4149.4,4149.3,1.006]
[1758596189814,0.20089294,4149.4,4149.3,0.6874]
[1758596190206,3.2078,4149.6,4149.5,0.43338]
[1758596190405,3.42723498,4149.6,4149.5,0.75198]
[1758596190905,3.76273498,4149.6,4149.4,0.43338]
[1758596191207,3.5433,4149.6,4149.5,0.254]
[1758596191399,3.76273854,4149.6,4149.5,0.254]
[1758596191603,3.42723854,4149.6,4149.5,0.5624]
[1758596192511,0.21943854,4149.6,4149.5,0.5624]
[1758596192710,3.6411,4150.3,4149.9,0.43334]
[1758596192904,0.3355,4150.1,4150.0,0.254]
[1758596193108,0.1311,4150.0,4149.2,0.3084]
[1758596193313,3.5433,4149.8,4149.7,0.43336]
[1758596193609,3.42726552,4149.8,4149.6,0.43337]
[1758596193909,0.55496552,4149.7,4149.6,0.43337]
[1758596194109,0.55496552,4149.7,4149.6,0.68737]
[1758596194411,0.55496552,4149.7,4149.6,0.99577]
[1758596195408,0.21946552,4149.7,4149.6,0.99577]
[1758596195618,0.3355,4150.1,4150.0,0.43333]
[1758596195912,0.55497243,4150.1,4150.0,0.99573]
[1758596196613,3.5433,4150.4,4150.3,0.4333]
[1758596196814,3.76284455,4150.4,4150.3,0.4333]
[1758596197110,3.42734455,4150.4,4150.3,0.7417]
[1758596197709,0.21954455,4150.4,4150.3,0.7417]
[1758596197905,3.2078,4150.9,4150.8,0.43325]
[1758596198106,3.76288371,4150.9,4150.8,0.43325]
[1758596198304,3.76288371,4150.9,4150.8,41.48725]
[1758596198509,3.76288371,4150.9,4150.8,41.79565]
[1758596198711,3.42738371,4150.9,4150.8,41.79565]
[1758596199116,3.3418,4151.5,4151.4,0.43319]
[1758596199416,3.42933461,4151.5,4151.4,0.99559]
[1758596199919,3.2078,4152.1,4152.0,0.74152]
[1758596200218,3.2078,4152.1,4152.0,41.79552]
[1758596200720,3.5433,4152.7,4152.6,0.74146]
[1758596201017,3.5433,4152.7,4152.6,0.43306]
[1758596201316,0.3355,4152.4,4152.3,0.43309]
[1758596201611,0.3355,4152.4,4152.3,0.68709]
[1758596203118,3.2078,4152.7,4152.4,0.43308]
[1758596203414,3.2078,4152.7,4152.5,0.43307]
[1758596203619,3.2078,4152.7,4152.6,0.5624]
[1758596204120,3.5433,4152.7,4152.6,0.254]
[1758596204322,3.5433,4152.7,4152.2,0.3084]
[1758596204522,0.3355,4152.4,4152.3,0.68708]
[1758596204913,0.3355,4152.4,4152.3,0.99548]
[1758596205213,0.3355,4152.4,4152.3,0.43308]
[1758596205414,0.3355,4152.4,4152.3,0.68708]
[1758596206217,0.3355,4152.4,4152.3,0.68709]
[1758596207222,0.56418,4152.5,4152.3,0.254]
[1758596207415,0.43309,4152.4,4152.0,41.23312]
[1758596207615,0.3355,4152.3,4152.1,0.254]
[1758596207912,0.3355,4152.2,4152.1,0.68711]
[1758596208514,0.3355,4152.2,4152.1,0.99551]
[1758596208930,0.1311,4152.5,4152.0,40.8]
[1758596209222,0.1311,4152.5,4152.1,0.254]
[1758596209418,0.3355,4152.4,4152.1,0.254]
[1758596209817,0.3355,4152.4,4152.3,0.43309]
[1758596210826,0.3355,4152.4,4152.3,0.68709]
[1758596211230,0.3355,4152.4,4152.3,0.254]
[1758596211926,0.3355,4152.4,4152.3,0.5624]
[1758596213323,0.3355,4152.4,4152.3,0.254]
[1758596213523,0.1311,4152.5,4152.3,0.253]
[1758596213716,0.3355,4152.4,4152.3,0.253]
[1758596214222,0.3355,4152.4,4152.3,0.5614]
[1758596214625,3.5433,4152.7,4152.6,0.43307]
[1758596214919,3.5433,4152.7,4152.6,0.68607]
[1758596215227,3.2078,4152.7,4152.6,0.99447]
[1758596216321,3.5433,4152.7,4152.6,0.99447]
[1758596216525,3.5433,4152.7,4152.6,41.48607]
[1758596216713,3.5433,4152.7,4152.6,41.79447]
[1758596217827,3.5433,4152.7,4152.6,41.48607]
[1758596218127,3.5433,4152.7,4152.6,41.79447]
[1758596219427,0.3355,4152.7,4152.6,41.79447]
[1758596220422,0.2316,4152.9,4152.8,0.86315]
[1758596220623,0.7765,4152.9,4152.8,0.64425]
[1758596220825,0.7765,4152.9,4152.8,0.90715]
[1758596221125,0.7765,4152.9,4152.8,1.12605]
[1758596221322,0.76715,4152.8,4152.6,41.23306]
[1758596221527,0.76715,4152.8,4152.6,40.8]
[1758596221528,3.9623,4152.7,4152.6,40.8]
[1758596221726,3.9623,4152.7,4152.6,41.053]
[1758596222126,3.9623,4152.7,4152.6,0.253]
[1758596222435,3.9623,4152.7,4152.6,0.4741]
[1758596222824,3.9623,4152.7,4152.6,1.0228]
[1758596223130,3.9623,4152.7,4152.6,0.253]
[1758596223332,0.1257,4152.5,4152.2,40.8]
[1758596223526,0.1257,4152.5,4152.2,41.23311]
[1758596223527,0.3341,4152.3,4152.2,41.23311]
[1758596223729,0.3341,4152.3,4152.2,41.48511]
[1758596223923,0.3341,4152.3,4152.2,41.23311]
[1758596224228,0.7545,4152.3,4152.2,1.12511]
[1758596224417,0.7545,4152.3,4152.2,1.45491]
[1758596224624,3.9623,4152.7,4152.6,0.87307]
[1758596224825,4.18011611,4152.7,4152.6,1.45487]
[1758596225132,3.63521611,4152.7,4152.6,1.45487]
[1758596225332,4.18011611,4152.7,4152.6,0.68507]
[1758596225627,3.84601611,4152.7,4152.4,0.43308]
[1758596225833,0.7545,4152.4,4152.3,0.4331]
[1758596226029,0.97231611,4152.4,4152.3,0.6851]
[1758596226235,0.97231611,4152.4,4152.3,0.4331]
[1758596226534,0.97231611,4152.4,4152.3,0.6851]
[1758596226724,0.97231611,4152.4,4152.3,0.4331]
[1758596226928,0.97231611,4152.4,4152.3,0.9062]
[1758596228124,0.7545,4152.3,4152.2,0.4331]
[1758596228325,0.97231611,4152.3,4152.2,0.4331]
[1758596228521,0.7545,4151.4,4151.1,0.3298]
[1758596228718,0.7545,4151.4,4150.9,0.65435]
[1758596228719,0.8802,4151.0,4150.9,0.65435]
[1758596228930,0.2185635,4151.0,4150.9,1.45505]
[1758596229231,3.7515,4151.4,4151.3,0.5509]
[1758596229429,4.18099072,4151.4,4151.3,0.4731]
[1758596229928,4.28008072,4151.4,4151.3,0.252]
[1758596230133,4.18099072,4151.4,4151.3,0.252]
[1758596230825,4.18099072,4151.4,4151.1,0.43322]
[1758596231132,0.8802,4151.0,4150.9,0.43324]
[1758596231331,1.09889072,4151.0,4150.9,0.68524]
[1758596231722,1.09889072,4151.0,4150.5,0.43328]
[1758596231929,0.7545,4150.6,4150.5,0.43329]
[1758596232130,0.97319072,4150.6,4150.5,0.68529]
[1758596232932,0.1257,4150.5,4149.7,3.2078]
[1758596233135,0.2096,4149.9,4149.8,1.45516]
[1758596233428,0.2096,4149.9,4149.8,42.25516]
[1758596234032,0.5437,4149.9,4149.8,42.25516]
[1758596234224,0.5437,4149.9,4149.8,41.67336]
[1758596234424,0.5437,4149.9,4149.8,41.92536]
[1758596234629,0.5437,4149.9,4149.8,42.25516]
[1758596234834,3.9623,4150.3,4150.2,0.2211]
[1758596235028,4.18025134,4150.3,4150.2,0.4731]
[1758596235825,3.96945134,4150.3,4150.2,1.0218]
[1758596236029,3.2078,4150.3,4150.2,1.0218]
[1758596236237,4.58576771,4152.4,4150.2,1.0218]
[1758596236238,3.5419,4151.3,4151.2,0.76301]
[1758596236429,3.75978914,4151.3,4151.2,1.01501]
[1758596238242,3.85889914,4151.3,4151.2,0.252]
[1758596238641,0.1222,4151.0,4150.9,0.43324]
[1758596238851,0.4537,4151.0,4150.9,0.68524]
[1758596239948,0.4537,4151.0,4150.9,0.252]
[1758596242861,0.5463,4150.4,4150.3,0.2156]
[1758596243050,0.7658,4150.4,4150.3,0.4676]
[1758596243357,0.2148,4150.4,4150.3,42.22361]
[1758596243948,0.2148,4150.7,4150.6,1.17158]
[1758596244149,0.5463,4150.7,4150.6,1.42358]
[1758596244450,0.3315,4151.0,4150.8,0.43325]
[1758596244655,3.85581,4151.3,4151.2,0.2156]
[1758596244858,3.64048771,4151.3,4151.2,0.9903]
[1758596245148,4.19148771,4151.3,4151.2,0.6753]
[1758596245353,0.43323,4151.1,4150.8,0.43325]
[1758596245553,0.4537,4151.0,4150.9,0.252]
[1758596245755,0.3315,4150.9,4150.8,0.43325]
[1758596245959,0.3315,4150.9,4150.8,0.68525]
[1758596246353,0.3315,4150.9,4150.8,0.43325]
[1758596246653,0.3315,4150.9,4150.8,0.68525]
[1758596246854,0.3315,4150.9,4150.8,1.00025]
[1758596247155,3.64101,4151.3,4150.9,0.43324]
[1758596247469,0.3315,4151.1,4151.0,0.43323]
[1758596247656,0.3315,4151.1,4151.0,0.74823]
[1758596247858,0.5463,4151.1,4151.0,0.96383]
[1758596248162,0.5463,4151.1,4151.0,1.17153]
[1758596249864,0.7658,4151.1,4151.0,0.2156]
[1758596250066,0.98400849,4151.1,4151.0,0.252]
[1758596250266,0.888,4151.0,4150.9,0.64884]
[1758596250568,0.888,4151.0,4150.9,0.90084]
[1758596250864,0.888,4151.0,4150.9,1.43864]
[1758596251062,0.888,4151.0,4150.9,1.12474]
[1758596251365,1.10628367,4151.0,4150.9,0.4676]
[1758596251958,0.76458367,4151.0,4150.9,1.0054]
[1758596252168,0.75208367,4151.0,4150.9,1.0054]
[1758596252466,0.7521943,4151.0,4150.9,1.0054]
[1758596252658,3.2078,4151.3,4150.9,1.0054]
[1758596252865,3.2078,4151.3,4151.2,0.7614]
[1758596253067,4.17430997,4151.3,4151.2,0.7614]
[1758596253365,0.4344,4150.7,4150.6,3.64107]
[1758596253570,0.7481,4150.7,4150.6,3.89207]
[1758596253967,0.7481,4150.7,4150.6,4.65347]
[1758596254164,0.96667006,4150.7,4150.6,3.9063]
[1758596254761,0.21857006,4150.7,4150.6,4.2202]
[1758596254966,0.7481,4151.2,4151.1,0.2236]
[1758596255267,0.96667232,4151.2,4151.1,0.4746]
[1758596255462,0.96667232,4151.2,4150.6,3.5217]
[1758596255463,0.7481,4150.7,4150.6,3.64108]
[1758596255671,0.21857232,4150.7,4150.6,4.65348]
[1758596255870,0.21868738,4151.1,4151.0,0.88073]
[1758596256072,0.21868744,4151.1,4151.0,1.13173]
[1758596256262,0.75248744,4151.1,4151.0,1.13173]
[1758596256464,0.75248744,4151.1,4151.0,0.6985]
[1758596256669,0.96678744,4151.1,4151.0,0.6985]
[1758596257173,0.21868744,4151.1,4151.0,1.0124]
[1758596257363,0.21868744,4151.1,4151.0,1.1378]
[1758596257564,0.21868744,4151.1,4151.0,5.37869999]
[1758596257764,0.21868744,4151.1,4151.0,1.1378]
[1758596258269,0.21868744,4151.1,4151.0,5.1378]
[1758596258667,0.21868744,4151.1,4151.0,4.8868]
[1758596258864,0.43878744,4151.1,4151.0,1.0124]
[1758596259065,0.21868744,4151.1,4151.0,1.0124]
[1758596259373,0.21868744,4151.1,4151.0,0.8868]
[1758596259672,0.21868744,4151.1,4151.0,1.1378]
[1758596260275,0.21868744,4151.1,4151.0,5.1378]
[1758596260869,0.21868744,4151.1,4151.0,5.37869999]
[1758596260870,0.12211838,4151.1,4151.0,5.37869999]
[1758596261176,0.2201,4152.1,4152.0,0.74703]
[1758596261473,0.5338,4152.1,4152.0,1.44553]
[1758596261661,0.2201,4152.1,4152.0,1.44553]
[1758596261867,0.2201,4152.4,4152.3,1.19449]
[1758596262070,3.2078,4152.5,4152.4,0.7614]
[1758596262465,4.0849,4152.5,4152.4,0.4746]
[1758596263666,4.0849,4152.5,4152.4,0.251]
[1758596264265,0.3137,4152.4,4152.1,0.43311]
[1758596264472,0.7481,4152.2,4152.1,0.2236]
[1758596264772,0.7481,4151.9,4151.8,0.65675]
[1758596264974,3.9559,4151.9,4151.8,1.13165]
[1758596265279,0.3137,4151.8,4151.1,0.3139]
[1758596265569,0.7481,4151.2,4151.1,1.19462]
[1758596265774,0.7481,4151.2,4151.1,1.44662]
[1758596265969,0.7481,4151.2,4151.1,1.13272]
[1758596266164,0.7481,4151.2,4151.1,0.4756]
[1758596266376,0.7481,4151.2,4151.1,0.252]
[1758596266578,0.7481,4151.2,4151.1,0.6995]
[1758596266877,0.7481,4151.2,4151.1,1.0134]
[1758596268266,0.7481,4151.2,4151.1,0.6995]
[1758596268466,0.3137,4151.2,4151.1,0.6995]
[1758596268678,3.2078,4151.3,4151.2,1.19461]
[1758596269171,3.4279,4151.3,4151.2,1.19461]
[1758596269371,3.9559,4151.3,4151.2,1.19461]
[1758596269577,3.9559,4151.3,4151.2,1.13171]
[1758596270780,3.9559,4151.3,4151.2,1.44561]
[1758596271285,3.9559,4151.3,4151.2,1.13171]
[1758596271576,3.7416,4151.3,4151.2,1.0124]
[1758596271776,3.2078,4151.3,4151.2,1.0124]
[1758596272083,3.2078,4151.3,4151.2,5.25329]
[1758596272282,3.2078,4151.9,4151.8,0.88065]
[1758596272582,3.2078,4151.9,4151.8,1.44555]
[1758596272882,3.96902175,4151.9,4151.8,1.44555]
[1758596273077,4.18332175,4151.9,4151.8,1.19455]
[1758596273374,3.65532175,4151.9,4151.8,1.44555]
[1758596273579,4.18332175,4151.9,4151.8,1.44555]
[1758596273783,0.97552175,4151.9,4151.8,1.13165]
[1758596274179,0.97552175,4151.9,4151.8,0.90775]
[1758596275073,0.97552175,4151.9,4151.8,0.68415]
[1758596275277,4.18332175,4151.9,4151.8,0.68415]
[1758596275476,4.30277175,4151.9,4151.6,0.43317]
[1758596275682,0.97552175,4151.8,4151.7,0.251]
[1758596275983,1.40867175,4151.8,4151.7,0.251]
[1758596276174,0.8771,4151.5,4151.4,0.43319]
[1758596276373,1.10452175,4151.5,4151.4,0.68419]
[1758596276970,0.44752175,4151.5,4151.4,1.44559]
[1758596277182,0.22742175,4151.5,4151.4,1.44559]
[1758596277481,0.97552175,4151.5,4151.4,1.44559]
[1758596279683,0.44752175,4151.5,4151.4,1.44559]
[1758596279876,0.22742175,4151.5,4151.4,1.44559]
[1758596280684,1.10662175,4151.5,4151.4,0.6985]
[1758596281075,1.10662175,4151.5,4151.4,0.2236]
[1758596281278,1.10662175,4151.5,4150.5,3.2078]
[1758596281279,0.4359,4150.7,4150.5,3.2078]
[1758596281576,0.7558,4150.3,4150.2,0.64142]
[1758596281772,0.7558,4150.3,4150.2,1.42792]
[1758596282374,0.7558,4150.3,4150.2,0.85902]
[1758596282575,0.5439,4150.3,4150.2,1.11002]
[1758596282777,0.4359,4150.7,4150.6,0.64137]
[1758596282968,0.98326334,4150.7,4150.6,0.89237]
[1758596283173,0.98326334,4150.7,4150.6,1.21027]
[1758596283869,0.98326334,4150.7,4150.6,0.4591]
[1758596284775,0.98326334,4150.7,4150.6,0.6767]
[1758596284975,0.98326334,4150.7,4150.6,0.9946]
[1758596285377,0.66336334,4150.7,4149.9,41.1179]
[1758596285584,0.5439,4150.1,4150.0,1.42794]
[1758596286383,0.224,4150.1,4150.0,1.42794]
[1758596286980,0.3199,4150.4,4150.3,0.43331]
[1758596287188,0.77132497,4150.4,4150.3,1.17691]
[1758596287376,0.77132497,4150.4,4150.3,1.42791]
[1758596288982,0.98322497,4150.4,4150.3,1.11001]
[1758596289877,0.98322497,4150.4,4150.3,0.85901]
[1758596290183,0.98322497,4150.4,4150.3,0.25]
[1758596291087,0.7558,4150.1,4150.0,0.43333]
[1758596291382,0.98322497,4150.1,4150.0,0.68333]
[1758596291779,0.98322497,4150.1,4149.5,0.3179]
[1758596291780,0.7558,4149.9,4149.8,0.43335]
[1758596291983,0.98322497,4149.9,4149.8,0.68335]
[1758596292383,0.98322497,4149.9,4149.8,0.25]
[1758596293384,0.98322497,4149.9,4149.8,0.4581]
[1758596294484,0.22742497,4149.9,4149.8,0.9936]
[1758596294789,3.7517,4150.5,4150.4,0.7436]
[1758596294982,3.97934139,4150.5,4150.4,0.9936]
[1758596295182,4.19124139,4150.5,4150.4,0.9936]
[1758596295787,4.31854139,4150.5,4150.4,0.4581]
[1758596296086,4.31854139,4150.5,4150.4,0.2081]
[1758596296387,4.31854139,4150.5,4150.4,0.4581]
[1758596296586,4.31854139,4150.5,4150.4,0.9971]
[1758596296587,0.77154139,4150.5,4150.4,0.9971]
[1758596296886,0.98244139,4150.5,4150.4,0.9971]
[1758596298783,1.11424139,4150.5,4150.4,0.6799]
[1758596299484,1.11424139,4150.5,4150.4,0.4581]
[1758596299688,1.11424139,4150.5,4150.4,0.9971]
[1758596300187,0.98244139,4150.5,4150.4,0.9971]
[1758596301588,1.11424139,4150.5,4150.4,0.9971]
[1758596304186,1.11424139,4150.5,4150.4,0.6799]
[1758596304382,0.8866,4150.5,4150.4,0.6799]
[1758596304681,1.11441245,4150.5,4150.4,0.6799]
[1758596306188,1.11441245,4150.5,4150.4,0.9971]
[1758596309088,1.11441245,4150.5,4150.4,0.6799]
[1758596309483,1.11441245,4150.5,4150.4,0.9971]
[1758596312893,1.11441245,4150.5,4150.4,0.6799]
[1758596313398,0.43338,4149.7,4149.4,2.16272587]
[1758596313698,0.4587,4149.0,4148.9,0.43345]
[1758596313892,1.11091245,4149.0,4148.9,41.48245]
[1758596314195,0.44291245,4149.0,4148.9,41.79465]
[1758596314592,0.77461245,4149.0,4148.9,41.79465]
[1758596314794,0.90161245,4149.0,4148.9,41.48245]
[1758596315192,0.90161245,4149.0,4148.9,41.79465]
[1758596315499,0.90161245,4149.0,4148.9,41.54565]
[1758596315697,0.90161245,4149.0,4148.9,41.049]
[1758596316291,4.10941245,4149.0,4148.9,41.049]
[1758596316799,0.7561,4148.7,4148.6,0.65188]
[1758596317001,1.01102702,4148.7,4148.6,0.90088]
[1758596317999,1.01102702,4148.7,4148.6,1.42928]
[1758596318395,0.25492702,4148.7,4148.6,1.42928]
[1758596318601,0.25492702,4148.7,4148.6,2.78368804]
[1758596321000,3.2078,4149.0,4148.9,1.18025]
[1758596321302,3.68701477,4149.0,4148.9,2.78365804]
[1758596321502,4.01871477,4149.0,4148.9,2.78365804]
[1758596322098,0.26411477,4149.0,4148.9,2.78365804]
[1758596324901,0.2151,4149.4,4149.3,0.43341]
[1758596325102,1.01998019,4149.4,4149.3,0.9958]
[1758596325402,1.01998019,4149.4,4149.0,0.43344]
[1758596325403,0.43343,4149.2,4149.0,1.35440804]
[1758596325609,0.7561,4148.7,4148.6,3.4262]
[1758596325811,1.01998019,4148.7,4148.6,4.63709]
[1758596326310,0.3105334,4148.7,4148.6,4.63709]
[1758596327010,0.5256334,4148.7,4148.6,4.38809]
[1758596327206,0.5256334,4148.7,4148.6,4.63709]
[1758596327618,0.5256334,4148.7,4148.6,5.99149804]
[1758596328124,0.47898019,4148.7,4148.6,5.99149804]
[1758596329920,0.47898019,4148.7,4148.6,5.55800804]
[1758596330127,0.68828019,4148.7,4148.6,2.35020804]
[1758596330623,1.01998019,4148.7,4148.6,0.7468]
[1758596330824,0.7561,4148.4,4148.3,0.5306]
[1758596331020,4.22778019,4148.4,4148.3,0.7796]
[1758596331220,0.26388019,4148.4,4148.3,0.9958]
[1758596333530,3.2078,4149.4,4149.3,1.18021]